bitfinex/quotes_BTCUSD_20230114
["timestamp","ask_amount","ask_price","bid_price","bid_amount"]
[1673698661599,0.1404,20645.0,20639.0,0.0144941]
[1673698661866,1.48093895,20644.0,20639.0,0.10472579]
[1673698662099,0.45413235,20643.0,20639.0,0.21608847]
[1673698662346,1.64496794,20647.0,20639.0,0.21608847]
[1673698662347,0.2,20648.0,20640.0,0.47720169]
[1673698662619,0.58645099,20648.0,20642.0,0.62856618]
[1673698662862,0.21967014,20647.0,20643.0,0.47720169]
[1673698663111,0.21967014,20647.0,20644.0,0.96159869]
[1673698663399,0.21967014,20647.0,20640.0,0.70141988]
[1673698663400,0.20772348,20643.0,20640.0,0.70141988]
[1673698663604,0.19072595,20642.0,20640.0,1.17862157]
[1673698664092,0.20772348,20643.0,20640.0,1.17862157]
[1673698665612,0.20772348,20643.0,20639.0,0.4990081]
[1673698665613,0.19072595,20643.0,20639.0,0.0144941]
[1673698667095,0.67515595,20643.0,20639.0,0.0144941]
[1673698667340,0.67515595,20643.0,20639.0,0.23977406]
[1673698667584,0.24861679,20642.0,20639.0,0.21563584]
[1673698668834,0.24861679,20642.0,20640.0,0.23811942]
[1673698669098,0.484404,20644.0,20640.0,0.23811942]
[1673698669333,0.484404,20644.0,20640.0,0.72998832]
[1673698669334,0.19708932,20644.0,20640.0,0.72998832]
[1673698669822,0.19708932,20644.0,20640.0,0.24549632]
[1673698670086,0.20982693,20643.0,20640.0,0.24549632]
[1673698670324,0.67508295,20646.0,20640.0,0.24549632]
[1673698670571,0.21755375,20645.0,20640.0,0.24549632]
[1673698670785,0.4082797,20645.0,20640.0,0.24549632]
[1673698672107,0.4082797,20645.0,20641.0,0.3]
[1673698672359,0.2,20648.0,20642.0,0.47720169]
[1673698672626,0.2,20648.0,20643.0,1.74601369]
[1673698672627,0.42335357,20648.0,20643.0,1.74601369]
[1673698673127,0.42335357,20648.0,20644.0,0.1]
[1673698673128,0.2,20648.0,20644.0,0.1]
[1673698673378,0.2,20648.0,20645.0,0.968748]
[1673698673623,0.2,20648.0,20646.0,0.3]
[1673698673895,0.2,20648.0,20647.0,0.484331]
[1673698674125,0.2,20648.0,20647.0,1.36153269]
[1673698675109,0.1982,20648.0,20647.0,1.36153269]
[1673698675381,0.1982,20648.0,20647.0,1.27003269]
[1673698675636,0.89368648,20648.0,20643.0,0.43047273]
[1673698675931,0.89368648,20648.0,20642.0,0.2161726]
[1673698675932,0.51209695,20647.0,20642.0,0.14412718]
[1673698676129,0.52086695,20646.0,20639.0,0.20238896]
[1673698676372,0.1,20644.0,20639.0,0.20238896]
[1673698676621,0.99653095,20643.0,20640.0,0.20751271]
[1673698676862,0.215793,20642.0,20640.0,0.20751271]
[1673698677111,0.321371,20641.0,20640.0,0.25719825]
[1673698677357,0.321371,20641.0,20639.0,0.0144941]
[1673698677358,0.51209695,20641.0,20639.0,0.0144941]
[1673698677609,0.700289,20640.0,20639.0,0.0144941]
[1673698677856,0.89101495,20640.0,20639.0,0.0144941]
[1673698678098,0.800289,20640.0,20639.0,0.0144941]
[1673698678361,1.0001031,20640.0,20639.0,9.41e-05]
[1673698678602,0.9913331,20640.0,20639.0,9.41e-05]
[1673698678854,0.800289,20640.0,20639.0,9.41e-05]
[1673698679352,0.1,20639.0,20638.0,0.04974872]
[1673698679598,0.90589,20639.0,20638.0,0.04974872]
[1673698680329,1.00360642,20639.0,20638.0,0.04974872]
[1673698681322,1.00360642,20639.0,20638.0,0.04952648]
[1673698681572,0.80589,20639.0,20638.0,0.04952648]
[1673698681818,0.90589,20639.0,20638.0,0.04952648]
[1673698682552,1.06347401,20639.0,20638.0,0.04952648]
[1673698682799,0.80589,20639.0,20638.0,0.04952648]
[1673698683056,1.02517049,20639.0,20638.0,0.04952648]
[1673698683821,1.32517049,20639.0,20638.0,0.04952648]
[1673698684076,1.92690677,20639.0,20638.0,0.04952648]
[1673698684329,0.1290922,20637.0,20633.0,0.01596387]
[1673698684565,0.1412,20635.0,20633.0,0.01596387]
[1673698684806,2.40744089,20634.0,20633.0,0.01596387]
[1673698685071,2.40744089,20634.0,20629.0,0.11217921]
[1673698685072,0.1,20633.0,20629.0,0.11217921]
[1673698685313,2.00178295,20632.0,20630.0,0.26575921]
[1673698685557,0.321371,20631.0,20628.0,0.3]
[1673698685801,1.37597895,20630.0,20629.0,0.18792375]
[1673698686088,1.37597895,20630.0,20629.0,0.23684912]
[1673698686089,1.185253,20630.0,20629.0,0.23684912]
[1673698686323,1.185253,20630.0,20628.0,0.3]
[1673698686562,0.321371,20629.0,20628.0,0.3]
[1673698686826,0.906125,20629.0,20628.0,0.3]
[1673698687065,0.806125,20629.0,20628.0,0.3]
[1673698688051,0.906125,20629.0,20628.0,0.3]
[1673698689525,1.14074227,20629.0,20628.0,0.3]
[1673698689813,1.5590948,20629.0,20628.0,0.3]
[1673698690064,1.7002948,20629.0,20628.0,0.3]
[1673698690307,1.71918632,20629.0,20628.0,0.3]
[1673698690550,1.48839757,20629.0,20628.0,0.3]
[1673698693526,1.48839757,20629.0,20619.0,0.4]
[1673698693527,0.3,20628.0,20619.0,0.3]
[1673698693779,0.1412,20625.0,20619.0,0.3]
[1673698694053,2.50873815,20624.0,20619.0,0.51711331]
[1673698694302,0.215793,20623.0,20619.0,0.3]
[1673698694546,0.72388198,20626.0,20622.0,0.19693102]
[1673698694790,0.24759059,20625.0,20622.0,0.19693102]
[1673698695040,0.484826,20626.0,20622.0,0.19693102]
[1673698695289,0.69824258,20626.0,20622.0,0.19693102]
[1673698695535,0.21341658,20626.0,20623.0,7.302e-05]
[1673698695780,0.21341658,20626.0,20622.0,0.19693102]
[1673698696546,0.21341658,20626.0,20623.0,7.302e-05]
[1673698696800,0.613141,20628.0,20623.0,7.302e-05]
[1673698697039,0.26021285,20627.0,20624.0,0.2624585]
[1673698697517,0.26021285,20627.0,20625.0,7.302e-05]
[1673698697781,0.584743,20630.0,20625.0,0.484847]
[1673698697782,0.1,20630.0,20625.0,0.484847]
[1673698698024,0.21569262,20630.0,20625.0,0.96204869]
[1673698698531,0.484638,20634.0,20625.0,0.96204869]
[1673698698759,0.484638,20634.0,20626.0,0.48570169]
[1673698698760,0.23830801,20633.0,20626.0,0.48570169]
[1673698699014,0.25018573,20635.0,20628.0,0.96955]
[1673698699254,0.21287033,20634.0,20629.0,0.47720169]
[1673698699488,0.71890456,20637.0,20630.0,0.96192069]
[1673698699728,0.21608739,20636.0,20630.0,0.96192069]
[1673698699967,0.21608739,20636.0,20631.0,0.1]
[1673698700213,0.23432456,20637.0,20632.0,0.969349]
[1673698700473,0.23432456,20637.0,20633.0,0.47720169]
[1673698700737,0.23432456,20637.0,20634.0,1.44654213]
[1673698701002,0.23432456,20637.0,20635.0,0.57720169]
[1673698701322,0.23432456,20637.0,20636.0,0.96918]
[1673698701575,0.23432456,20637.0,20636.0,1.06918]
[1673698701817,0.23432456,20637.0,20636.0,1.06925643]
[1673698702070,0.23432456,20637.0,20636.0,1.54645812]
[1673698702297,2.456e-05,20637.0,20636.0,1.44645812]
[1673698702531,2.456e-05,20637.0,20636.0,0.96179169]
[1673698703488,2.456e-05,20637.0,20636.0,1.58299169]
[1673698703961,2.456e-05,20637.0,20636.0,1.20579]
[1673698704224,2.456e-05,20637.0,20636.0,1.68299169]
[1673698704460,2.456e-05,20637.0,20636.0,1.94473597]
[1673698704693,2.456e-05,20637.0,20636.0,1.69149169]
[1673698705955,2.456e-05,20637.0,20636.0,1.740185]
[1673698706949,2.456e-05,20637.0,20636.0,1.74025815]
[1673698707448,1.23320426,20645.0,20636.0,1.74025815]
[1673698707449,0.07370509,20645.0,20636.0,1.74025815]
[1673698707687,0.07370509,20645.0,20642.0,0.14126]
[1673698707934,0.07370509,20645.0,20644.0,0.1403]
[1673698708182,0.07370509,20645.0,20644.0,1.10190369]
[1673698708656,0.07370509,20645.0,20643.0,1.06892312]
[1673698708657,0.26443104,20645.0,20643.0,0.1]
[1673698708950,0.321371,20644.0,20642.0,6e-05]
[1673698709193,0.51209695,20644.0,20642.0,6e-05]
[1673698709442,0.26448631,20643.0,20642.0,6e-05]
[1673698709690,1.23333631,20643.0,20642.0,6e-05]
[1673698710190,0.315793,20643.0,20642.0,0.07568313]
[1673698710419,0.21162506,20644.0,20642.0,0.07568313]
[1673698711407,0.21162506,20644.0,20642.0,0.00013313]
[1673698711408,0.21833833,20643.0,20642.0,0.00013313]
[1673698711648,0.40906428,20643.0,20642.0,6e-05]
[1673698711900,0.17370509,20645.0,20642.0,6e-05]
[1673698712142,0.25092332,20643.0,20642.0,6e-05]
[1673698712371,0.57229432,20643.0,20642.0,0.07561]
[1673698712634,0.25092332,20643.0,20642.0,0.07561]
[1673698712858,0.07370509,20645.0,20642.0,0.07561]
[1673698713120,0.07370509,20645.0,20642.0,0.29406482]
[1673698713368,0.07370509,20645.0,20643.0,0.00014953]
[1673698714587,0.21942885,20646.0,20643.0,0.00014953]
[1673698715581,0.21942885,20646.0,20644.0,0.61750169]
[1673698715582,0.0058978,20646.0,20644.0,0.61750169]
[1673698715838,0.0058978,20646.0,20645.0,1.44595769]
[1673698717302,0.20474162,20645.0,20643.0,0.71106298]
[1673698717557,0.20474162,20645.0,20643.0,1.18826467]
[1673698717558,0.39546757,20645.0,20643.0,1.18826467]
[1673698717786,0.0008978,20646.0,20643.0,1.18811514]
[1673698718279,0.0008978,20646.0,20644.0,0.22482844]
[1673698718765,0.0008978,20646.0,20644.0,0.32482844]
[1673698718998,0.0008978,20646.0,20645.0,0.47720169]
[1673698719513,0.0008978,20646.0,20645.0,1.06157969]
[1673698719994,0.0008978,20646.0,20645.0,1.07007969]
[1673698720748,0.0008978,20646.0,20645.0,1.0702292]
[1673698720984,0.0008978,20646.0,20645.0,1.21966993]
[1673698721220,0.0008978,20646.0,20644.0,1.209984]
[1673698721221,0.0008978,20646.0,20644.0,0.19214512]
[1673698721562,0.26261153,20646.0,20644.0,0.19214512]
[1673698722267,0.45333748,20646.0,20641.0,0.73480889]
[1673698722528,0.19072595,20645.0,20642.0,0.74161713]
[1673698723004,0.26261153,20646.0,20642.0,0.74161713]
[1673698723235,0.26261153,20646.0,20643.0,0.20611838]
[1673698723744,0.26261153,20646.0,20641.0,0.484467]
[1673698723976,0.45333748,20646.0,20641.0,0.47720169]
[1673698724196,0.21060699,20645.0,20641.0,0.68330129]
[1673698724464,0.21060699,20645.0,20642.0,0.67429573]
[1673698724692,0.19162375,20646.0,20642.0,0.67429573]
[1673698724693,0.0008978,20646.0,20643.0,1.85455169]
[1673698724922,0.0008978,20646.0,20644.0,0.47720169]
[1673698725149,0.0008978,20646.0,20645.0,0.97007969]
[1673698725404,0.0008978,20646.0,20645.0,1.07007969]
[1673698726148,0.0008978,20646.0,20645.0,0.97007969]
[1673698726384,0.0008978,20646.0,20645.0,1.32464901]
[1673698726604,0.0008978,20646.0,20645.0,1.62464901]
[1673698727100,0.0008978,20646.0,20645.0,1.22464901]
[1673698727583,0.0008978,20646.0,20645.0,1.32464901]
[1673698727820,0.00073624,20646.0,20645.0,1.62464901]
[1673698728048,0.00073624,20646.0,20645.0,1.37161872]
[1673698728743,0.00073624,20646.0,20645.0,1.60110092]
[1673698728963,0.00073624,20646.0,20645.0,1.37161872]
[1673698729222,0.00073624,20646.0,20645.0,1.5033104]
[1673698729438,0.00073624,20646.0,20645.0,0.71739337]
[1673698729926,0.00073624,20646.0,20645.0,0.7189324]
[1673698730158,0.00073624,20646.0,20645.0,0.71739337]
[1673698731113,0.19598365,20646.0,20642.0,0.23544125]
[1673698731341,0.19072595,20645.0,20642.0,0.71264294]
[1673698731573,0.19072595,20645.0,20642.0,0.47720169]
[1673698731999,0.19598365,20646.0,20642.0,0.47720169]
[1673698732255,0.25554271,20644.0,20642.0,0.47720169]
[1673698732505,0.25554271,20644.0,20642.0,0.69823926]
[1673698732747,0.00073624,20646.0,20643.0,0.1973322]
[1673698733258,0.233532,20646.0,20643.0,0.4973322]
[1673698733506,0.233532,20646.0,20643.0,0.1973322]
[1673698734754,0.233532,20646.0,20643.0,0.4973322]
[1673698735250,0.233532,20646.0,20643.0,0.1973322]
[1673698735754,0.233532,20646.0,20644.0,7.694e-05]
[1673698736040,0.233532,20646.0,20643.0,0.1973322]
[1673698736268,0.233532,20646.0,20643.0,0.4973322]
[1673698736517,0.233532,20646.0,20643.0,0.97453389]
[1673698736775,0.233532,20646.0,20644.0,0.10007694]
[1673698737025,0.00073624,20646.0,20644.0,0.10007694]
[1673698737276,0.00073624,20646.0,20644.0,0.19368341]
[1673698738257,0.00073624,20646.0,20644.0,0.49368341]
[1673698738552,0.00073624,20646.0,20644.0,0.59368341]
[1673698738771,0.00073624,20646.0,20644.0,1.07808341]
[1673698739016,0.22729791,20646.0,20644.0,0.19360647]
[1673698739272,0.22729791,20646.0,20644.0,0.19368341]
[1673698739772,0.22729791,20646.0,20644.0,0.19360647]
[1673698740515,0.00073624,20646.0,20644.0,0.19360647]
[1673698740760,0.00073624,20646.0,20645.0,0.22316637]
[1673698741511,0.00073624,20646.0,20645.0,1.97767128]
[1673698741780,0.00073624,20646.0,20645.0,2.12153642]
[1673698742031,0.0004331,20646.0,20645.0,1.83519087]
[1673698742297,0.00023207,20654.0,20646.0,0.10043]
[1673698742531,1.73058729,20656.0,20653.0,1.1246983]
[1673698742784,1.73058729,20656.0,20655.0,0.97998432]
[1673698743034,1.99244594,20656.0,20655.0,0.14464166]
[1673698743555,1.73058729,20656.0,20655.0,0.14464166]
[1673698743804,1.94367932,20656.0,20654.0,1.11451402]
[1673698744053,1.94367932,20656.0,20653.0,0.72325909]
[1673698744054,1.73058729,20656.0,20653.0,0.72325909]
[1673698744369,1.73058729,20656.0,20653.0,0.50629661]
[1673698744370,1.92131324,20656.0,20653.0,0.50629661]
[1673698744584,1.73058729,20656.0,20653.0,0.50629661]
[1673698744856,0.22511447,20655.0,20653.0,0.50629661]
[1673698745078,0.19072595,20655.0,20653.0,0.50629661]
[1673698745321,0.321371,20654.0,20653.0,0.50629661]
[1673698746817,0.30589536,20655.0,20653.0,0.50629661]
[1673698747098,0.321371,20654.0,20653.0,0.50629661]
[1673698747349,0.421371,20654.0,20653.0,0.50629661]
[1673698748869,0.66079026,20654.0,20646.0,0.00051488]
[1673698749121,0.1412,20652.0,20646.0,0.00051488]
[1673698749376,0.95877877,20651.0,20646.0,0.2286032]
[1673698749622,0.95877877,20651.0,20646.0,0.00051488]
[1673698749623,0.215793,20650.0,20646.0,0.00051488]
[1673698749888,0.39076976,20650.0,20646.0,0.34788694]
[1673698750119,0.484256,20651.0,20646.0,0.34788694]
[1673698750120,0.19072595,20649.0,20646.0,0.00051488]
[1673698750366,0.67501495,20649.0,20646.0,0.00051488]
[1673698750620,0.321371,20648.0,20646.0,0.00051488]
[1673698750868,0.67501495,20649.0,20646.0,0.00051488]
[1673698751120,0.484289,20649.0,20646.0,0.00051488]
[1673698752119,0.484289,20649.0,20646.0,0.24051488]
[1673698752371,0.24059836,20648.0,20646.0,0.24051488]
[1673698753402,0.51209695,20647.0,20646.0,0.24051488]
[1673698753661,1.48075895,20647.0,20646.0,0.24051488]
[1673698753903,1.290033,20647.0,20646.0,0.24051488]
[1673698754440,1.390033,20647.0,20646.0,0.24051488]
[1673698754644,1.83671482,20647.0,20646.0,0.24051488]
[1673698755136,1.390033,20647.0,20646.0,0.24051488]
[1673698756964,2.08661812,20647.0,20646.0,0.24051488]
[1673698757182,2.38661812,20647.0,20646.0,0.24051488]
[1673698757929,1.83671482,20647.0,20646.0,0.24051488]
[1673698758182,2.13671482,20647.0,20646.0,0.24051488]
[1673698758430,1.83671482,20647.0,20646.0,0.24051488]
[1673698758683,2.13671482,20647.0,20646.0,0.24051488]
[1673698759183,2.13671482,20647.0,20638.0,0.15967989]
[1673698759184,0.1,20646.0,20638.0,0.15967989]
[1673698759434,1.453233,20644.0,20638.0,0.38845812]
[1673698759673,0.61209695,20643.0,20638.0,0.24381646]
[1673698759922,1.37543895,20642.0,20638.0,0.24381646]
[1673698760172,0.19072595,20641.0,20638.0,0.24381646]
[1673698760426,0.484437,20643.0,20639.0,0.08419607]
[1673698760678,0.484411,20644.0,20639.0,0.46060873]
[1673698760924,0.484411,20644.0,20639.0,0.22883773]
[1673698761168,0.484411,20644.0,20639.0,0.64671858]
[1673698761437,0.72127541,20645.0,20639.0,0.54580021]
[1673698761675,0.91200136,20645.0,20640.0,0.44464166]
[1673698761925,0.23688541,20645.0,20640.0,0.44464166]
[1673698762175,0.74138696,20646.0,20640.0,0.66160414]
[1673698762442,0.24624829,20649.0,20643.0,0.14464166]
[1673698762704,0.24624829,20649.0,20644.0,0.0085]
[1673698763216,0.24624829,20649.0,20644.0,0.15314166]
[1673698763450,0.24624829,20649.0,20644.0,0.45314166]
[1673698763704,0.43697424,20649.0,20644.0,0.45314166]
[1673698763944,0.43697424,20649.0,20644.0,0.0085]
[1673698763945,0.23065864,20647.0,20644.0,0.0085]
[1673698764188,0.42138459,20647.0,20644.0,0.0085]
[1673698764684,0.23065864,20647.0,20644.0,0.0085]
[1673698764929,0.23065864,20647.0,20644.0,0.19137258]
[1673698765433,0.19072595,20646.0,20641.0,1.33794324]
[1673698765684,0.51209695,20645.0,20641.0,0.99732429]
[1673698765931,0.40651895,20644.0,20641.0,0.99732429]
[1673698766171,0.19072595,20644.0,20641.0,0.99732429]
[1673698766677,0.19072595,20644.0,20641.0,0.24]
[1673698766678,0.67512995,20644.0,20641.0,0.24]
[1673698766920,0.421371,20643.0,20641.0,0.24]
[1673698767166,0.215793,20642.0,20641.0,0.24]
[1673698767428,0.77515095,20643.0,20641.0,0.24]
[1673698767671,0.321371,20642.0,20641.0,0.24]
[1673698768399,0.52355567,20642.0,20641.0,0.24]
[1673698769403,1.00800467,20642.0,20641.0,0.24]
[1673698769888,0.52355567,20642.0,20641.0,0.24]
[1673698770135,0.20218467,20642.0,20641.0,0.24014606]
[1673698770859,0.484405,20644.0,20641.0,0.71734775]
[1673698771111,0.484298,20649.0,20642.0,0.48570169]
[1673698771339,0.21822954,20650.0,20643.0,0.96161569]
[1673698771587,0.484258,20651.0,20644.0,0.78570169]
[1673698771588,0.25956371,20649.0,20644.0,0.78570169]
[1673698771842,0.25956371,20649.0,20645.0,0.584376]
[1673698772385,0.25956371,20649.0,20645.0,0.484376]
[1673698772647,0.484258,20651.0,20646.0,0.1]
[1673698772898,0.25541961,20651.0,20646.0,0.4]
[1673698773135,0.25541961,20651.0,20647.0,0.20493675]
[1673698773381,0.25541961,20651.0,20648.0,0.000146]
[1673698774605,0.25541961,20651.0,20647.0,0.68926475]
[1673698774855,0.44614556,20651.0,20647.0,0.68926475]
[1673698775096,0.19072595,20650.0,20647.0,0.68926475]
[1673698775332,0.19072595,20650.0,20645.0,0.25501303]
[1673698775576,0.19072595,20649.0,20646.0,0.0085]
[1673698775832,0.25846283,20648.0,20646.0,0.0085]
[1673698776834,0.25846283,20648.0,20646.0,0.19952624]
[1673698777071,0.48422,20652.0,20646.0,0.97005469]
[1673698777327,0.21909692,20652.0,20647.0,0.50404824]
[1673698777589,0.21909692,20652.0,20647.0,0.784324]
[1673698777825,0.21909692,20652.0,20647.0,0.99732497]
[1673698778060,0.21909692,20652.0,20648.0,0.1]
[1673698778554,0.21909692,20652.0,20647.0,0.784324]
[1673698778790,0.40982287,20652.0,20649.0,0.24733502]
[1673698779036,0.49109288,20654.0,20649.0,0.24733502]
[1673698779284,0.67988454,20654.0,20649.0,0.24733502]
[1673698779784,0.67988454,20654.0,20650.0,0.3]
[1673698779785,0.19569454,20654.0,20650.0,0.3]
[1673698780033,0.00690288,20654.0,20650.0,0.792758]
[1673698780521,0.23634629,20654.0,20650.0,0.492758]
[1673698780778,0.23634629,20654.0,20649.0,0.19377018]
[1673698780779,0.21946752,20652.0,20649.0,0.19377018]
[1673698781053,0.19072595,20651.0,20649.0,0.19377018]
[1673698781302,0.44070549,20651.0,20648.0,1.07980808]
[1673698781537,0.1,20652.0,20648.0,1.07980808]
[1673698781538,0.38857732,20650.0,20648.0,1.07980808]
[1673698781786,0.38857732,20650.0,20645.0,0.484362]
[1673698782026,0.19072595,20649.0,20646.0,0.19818221]
[1673698782536,0.484287,20649.0,20646.0,0.19818221]
[1673698783251,0.19785137,20650.0,20647.0,0.26087019]
[1673698783500,0.19785137,20650.0,20648.0,0.20043827]
[1673698783501,0.68213537,20650.0,20648.0,0.20043827]
[1673698783975,0.68213537,20650.0,20644.0,1.65010614]
[1673698784217,0.45082586,20649.0,20645.0,0.39922643]
[1673698784449,0.45076566,20649.0,20645.0,0.25458477]
[1673698784682,0.26003971,20649.0,20646.0,0.2443496]
[1673698784964,0.26003971,20649.0,20647.0,0.21133257]
[1673698786218,0.26003971,20649.0,20645.0,0.36160414]
[1673698786480,0.484228,20652.0,20647.0,0.24514692]
[1673698786700,0.24495087,20653.0,20649.0,0.24765871]
[1673698786959,0.49108688,20654.0,20648.0,1.26999669]
[1673698786960,0.00690288,20654.0,20648.0,1.26999669]
[1673698787201,0.24405674,20654.0,20648.0,1.63160083]
[1673698787439,0.24405674,20654.0,20648.0,1.41463835]
[1673698787440,0.43478269,20654.0,20648.0,1.41463835]
[1673698787690,0.43478269,20654.0,20648.0,1.63160083]
[1673698788174,0.43478269,20654.0,20649.0,0.14464166]
[1673698788428,0.00690288,20654.0,20650.0,0.0085]
[1673698788662,0.00690288,20654.0,20650.0,0.792757]
[1673698788904,0.00690288,20654.0,20650.0,1.36995869]
[1673698789162,0.00690288,20654.0,20650.0,1.26995869]
[1673698789388,0.00690288,20654.0,20651.0,0.20522339]
[1673698789625,0.00690288,20654.0,20652.0,0.3085]
[1673698790114,0.20768333,20653.0,20652.0,0.3]
[1673698791074,0.20768333,20653.0,20649.0,1.05430614]
[1673698791318,0.39840928,20653.0,20649.0,1.05430614]
[1673698791580,0.19072595,20652.0,20648.0,0.14464166]
[1673698791821,0.67495595,20652.0,20648.0,0.20947143]
[1673698792060,0.67495595,20652.0,20647.0,0.14464166]
[1673698792303,0.38643522,20651.0,20648.0,0.2062078]
[1673698792558,0.19570927,20651.0,20648.0,0.2062078]
[1673698793050,0.38643522,20651.0,20648.0,0.2062078]
[1673698793275,0.67994727,20651.0,20648.0,0.2062078]
[1673698794703,0.22092235,20650.0,20648.0,0.2062078]
[1673698794944,0.22092235,20650.0,20646.0,0.93364166]
[1673698795200,0.22092235,20650.0,20647.0,0.56506211]
[1673698795701,0.48423,20652.0,20647.0,0.70970377]
[1673698795941,0.73581411,20652.0,20647.0,0.70970377]
[1673698796229,0.92654006,20652.0,20647.0,0.70970377]
[1673698796469,0.33884121,20651.0,20647.0,0.70970377]
[1673698796709,0.25762351,20650.0,20647.0,0.56506211]
[1673698796936,0.25762351,20650.0,20647.0,0.26506211]
[1673698797944,0.19072595,20649.0,20646.0,0.14464166]
[1673698798178,0.51209695,20648.0,20642.0,0.74752997]
[1673698798413,0.40651895,20647.0,20642.0,0.74752997]
[1673698798665,0.40651895,20647.0,20642.0,0.60288831]
[1673698798666,0.19072595,20646.0,20642.0,0.60288831]
[1673698798909,0.19072595,20645.0,20642.0,0.60288831]
[1673698799392,0.19072595,20645.0,20643.0,0.20371232]
[1673698799637,0.484359,20646.0,20643.0,0.20371232]
[1673698799892,0.484359,20646.0,20644.0,0.21036502]
[1673698800226,0.484324,20648.0,20643.0,0.36160414]
[1673698800482,0.24776794,20647.0,20645.0,0.26267723]
[1673698801264,0.24776794,20647.0,20643.0,0.36160414]
[1673698801502,0.23077366,20645.0,20642.0,0.41490497]
[1673698801761,0.321371,20644.0,20642.0,0.41490497]
[1673698802004,0.23077366,20645.0,20643.0,0.19548284]
[1673698802253,0.7168165,20647.0,20643.0,0.19548284]
[1673698802514,0.22470354,20646.0,20643.0,0.19548284]
[1673698802738,0.484316,20648.0,20643.0,0.29548284]
[1673698802980,0.23580966,20647.0,20644.0,0.0085]
[1673698803488,1.046577,20650.0,20644.0,0.48570169]
[1673698803489,0.70033589,20650.0,20644.0,0.48570169]
[1673698803745,0.24072667,20649.0,20645.0,0.87720169]
[1673698803989,0.23178041,20648.0,20646.0,0.0085]
[1673698804738,0.48426,20651.0,20646.0,0.3085]
[1673698804988,0.20973504,20650.0,20646.0,0.0085]
[1673698805237,0.20973504,20650.0,20646.0,0.3085]
[1673698805481,0.20973504,20650.0,20647.0,0.35453801]
[1673698805724,0.20973504,20650.0,20647.0,0.25453801]
[1673698806721,0.70650177,20652.0,20647.0,0.35453801]
[1673698806983,0.56950288,20654.0,20647.0,0.35453801]
[1673698806984,0.00690288,20654.0,20649.0,0.79204873]
[1673698807231,0.00690288,20654.0,20650.0,0.88755637]
[1673698807480,0.23314796,20654.0,20651.0,0.48570169]
[1673698807728,0.24316325,20652.0,20651.0,0.0085]
[1673698808496,0.23801841,20654.0,20651.0,0.26102982]
[1673698808752,0.20950701,20653.0,20651.0,0.26102982]
[1673698810077,0.00690288,20654.0,20651.0,0.26102982]
[1673698810324,0.00690288,20654.0,20651.0,0.73823151]
[1673698810592,0.00690288,20654.0,20652.0,0.1085]
[1673698810831,0.00690288,20654.0,20653.0,0.24046559]
[1673698811594,0.00690288,20654.0,20653.0,0.34046559]
[1673698811856,0.00690288,20654.0,20653.0,0.68528434]
[1673698812354,0.00690288,20654.0,20653.0,1.16947534]
[1673698813834,0.00690288,20654.0,20653.0,1.27160562]
[1673698814078,0.00690288,20654.0,20653.0,1.22678687]
[1673698814330,0.00690288,20654.0,20653.0,1.6315985]
[1673698814583,0.00690288,20654.0,20653.0,2.09527222]
[1673698814846,0.00690288,20654.0,20653.0,1.84866913]
[1673698815152,0.00690288,20654.0,20653.0,2.13781205]
[1673698815153,0.00531586,20654.0,20653.0,2.13781205]
[1673698815631,0.00531586,20654.0,20653.0,1.84854595]
[1673698815870,0.00690288,20655.0,20654.0,0.00281394]
[1673698816122,0.00690288,20655.0,20654.0,1.20511483]
[1673698816450,0.00690288,20655.0,20654.0,1.23266549]
[1673698816657,0.00690288,20655.0,20654.0,0.71565223]
[1673698816916,0.00690288,20655.0,20654.0,0.00281394]
[1673698817912,0.68177283,20655.0,20654.0,0.00281394]
[1673698818179,0.81241788,20655.0,20654.0,0.00281394]
[1673698818664,1.21241788,20655.0,20654.0,0.00281394]
[1673698819178,0.91241788,20655.0,20654.0,0.00281394]
[1673698819661,1.08022357,20655.0,20654.0,0.00281394]
[1673698820157,0.91241788,20655.0,20654.0,0.00281394]
[1673698820404,1.21241788,20655.0,20654.0,0.00281394]
[1673698820912,0.91241788,20655.0,20654.0,0.00281394]
[1673698821161,1.21241788,20655.0,20654.0,0.00281394]
[1673698822144,1.80200877,20655.0,20654.0,0.00281394]
[1673698823164,1.80200877,20655.0,20647.0,0.2347678]
[1673698823437,0.1,20653.0,20647.0,0.2347678]
[1673698823656,0.40133848,20652.0,20648.0,0.25148397]
[1673698823895,1.36980048,20652.0,20648.0,0.25148397]
[1673698824677,1.17907453,20652.0,20648.0,0.25148397]
[1673698825407,0.69484153,20652.0,20648.0,0.39610526]
[1673698825634,0.25173427,20654.0,20649.0,0.67013455]
[1673698825918,0.25173427,20654.0,20650.0,0.14462129]
[1673698826156,0.19259582,20653.0,20650.0,0.14462129]
[1673698826396,0.19259582,20653.0,20650.0,0.34954316]
[1673698826892,0.19259582,20653.0,20650.0,0.20492187]
[1673698827372,0.59106288,20655.0,20647.0,0.15976881]
[1673698827373,0.19072595,20652.0,20647.0,0.15976881]
[1673698827611,1.25922395,20651.0,20647.0,0.01514752]
[1673698827862,1.25922395,20651.0,20650.0,0.24]
[1673698827863,0.67497495,20651.0,20650.0,0.24]
[1673698828106,0.484214,20652.0,20650.0,0.24]
[1673698828351,0.321371,20651.0,20650.0,0.24]
[1673698828862,0.215793,20651.0,20650.0,0.24]
[1673698829097,0.484214,20652.0,20650.0,0.24]
[1673698829594,0.7190886,20652.0,20650.0,0.24]
[1673698829851,0.2348746,20652.0,20650.0,0.24]
[1673698830105,0.484182,20654.0,20650.0,0.24]
[1673698830389,0.20184192,20655.0,20650.0,0.64691886]
[1673698830649,0.20184192,20655.0,20651.0,0.0085]
[1673698830888,0.20184192,20655.0,20651.0,0.1085]
[1673698831128,0.20184192,20655.0,20651.0,0.15312129]
[1673698831378,0.20184192,20655.0,20651.0,0.25312129]
[1673698831640,0.00690288,20655.0,20652.0,0.21867379]
[1673698832860,0.02129702,20654.0,20652.0,0.36329508]
[1673698833368,0.02129702,20654.0,20652.0,0.84584755]
[1673698833608,0.02129702,20654.0,20653.0,1.6001831]
[1673698833854,0.02129702,20654.0,20653.0,2.22910383]
[1673698834352,0.02129702,20654.0,20653.0,2.22897377]
[1673698834605,0.02129702,20654.0,20653.0,2.37377642]
[1673698835088,0.01134454,20654.0,20653.0,2.37377642]
[1673698836575,0.01134454,20654.0,20653.0,2.84649057]
[1673698837082,0.01134454,20654.0,20653.0,3.20817642]
[1673698838355,0.01134454,20654.0,20653.0,3.02458992]
[1673698838594,0.01134454,20654.0,20653.0,2.87975634]
[1673698838833,0.01134454,20654.0,20653.0,2.59040532]
[1673698839565,0.01134454,20654.0,20653.0,2.73497252]
[1673698839811,0.01134454,20654.0,20653.0,2.7630877]
[1673698840063,0.01134454,20654.0,20653.0,2.37399182]
[1673698840292,0.01134454,20654.0,20653.0,2.66334284]
[1673698840526,0.01134454,20654.0,20653.0,2.96334284]